fUST/lending_fUST_20240914
["ID","MTS","AMOUNT","RATE_DAILY","PERIOD"]
[338140876,1726297316125,500.0,0.00028,120]
[338140877,1726297319654,500.0,0.00028,120]
[338140878,1726297322026,1779.45,0.00028,120]
[338140879,1726297331314,500.0,0.00028,120]
[338140880,1726297335764,500.0,0.00028,120]
[338140881,1726297339222,500.0,0.00028,120]
[338140882,1726297342442,500.0,0.00028,120]
[338140883,1726297344444,500.0,0.00028,120]
[338140884,1726297352955,500.0,0.00028,120]
[338140885,1726297368400,585.37,0.00028,120]
[338140886,1726297369385,500.0,0.00028,120]
[338140887,1726297370130,500.0,0.00028,120]
[338140888,1726297374226,500.0,0.00028,120]
[338140889,1726297378384,500.0,0.00028,120]
[338140890,1726297379034,500.0,0.00028,120]
[338140891,1726297385090,500.0,0.00028,120]
[338140892,1726297386679,2101.69,0.00028,120]
[338140893,1726297393182,500.0,0.00028,120]
[338140894,1726297397867,500.0,0.00028,120]
[338140895,1726297400953,500.0,0.00028,120]
[338140896,1726297408613,500.0,0.00028,120]
[338140897,1726297416522,500.0,0.00028,120]
[338140898,1726297417235,500.0,0.00028,120]
[338140899,1726297419241,827.88,0.00028,120]
[338140900,1726297423987,500.0,0.00028,120]
[338140901,1726297428006,500.0,0.00028,120]
[338140902,1726297428286,500.0,0.00028,120]
[338140903,1726297430694,500.0,0.00028,120]
[338140904,1726297431603,500.0,0.00028,120]
[338140906,1726297433646,500.0,0.00028,120]
[338140907,1726297439815,500.0,0.00028,120]
[338140908,1726297441745,500.0,0.00028,120]
[338140909,1726297442165,500.0,0.00028,120]
[338140910,1726297443710,500.0,0.00028,120]
[338140911,1726297444009,500.0,0.00028,120]
[338140912,1726297445772,500.0,0.00028,120]
[338140913,1726297450055,500.0,0.00028,120]
[338140914,1726297450739,500.0,0.00028,120]
[338140915,1726297457933,500.0,0.00028,120]
[338140916,1726297458019,500.0,0.00028,120]
[338140917,1726297459380,500.0,0.00028,120]
[338140918,1726297462765,1676.61,0.00028,120]
[338140920,1726297465503,500.0,0.00028,120]
[338140921,1726297468204,500.0,0.00028,120]
[338140922,1726297468998,500.0,0.00028,120]
[338140923,1726297473290,191.43348125,0.00028,120]
[338140924,1726297485239,500.0,0.00028,120]
[338140925,1726297494744,500.0,0.00028,120]
[338140926,1726297503983,500.0,0.00028,120]
[338140927,1726297504303,500.0,0.00028,120]
[338140928,1726297505870,500.0,0.00028,120]
[338140929,1726297510635,500.0,0.00028,120]
[338140930,1726297510761,500.0,0.00028,120]
[338140931,1726297511900,500.0,0.00028,120]
[338140932,1726297516186,500.0,0.00028,120]
[338140933,1726297518078,500.0,0.00028,120]
[338140934,1726297523815,500.0,0.00028,120]
[338140935,1726297527965,500.0,0.00028,120]
[338140936,1726297529257,500.0,0.00028,120]
[338140937,1726297533090,500.0,0.00028,120]
[338140938,1726297533600,2533.98,0.00028,120]
[338140939,1726297538576,1786.19,0.00028,120]
[338140940,1726297541426,500.0,0.00028,120]
[338140941,1726297544810,569.94,0.00028,120]
[338140942,1726297545322,500.0,0.00028,120]
[338140943,1726297564734,500.0,0.00028,120]
[338140944,1726297567833,500.0,0.00028,120]
[338140945,1726297574533,500.0,0.00028,120]
[338140946,1726297577965,500.0,0.00028,120]
[338140947,1726297583050,500.0,0.00028,120]
[338140948,1726297583231,500.0,0.00028,120]
[338140949,1726297583683,500.0,0.00028,120]
[338140950,1726297583807,506.79,0.00028,120]
[338140951,1726297603086,500.0,0.00028,120]
[338140952,1726297605414,500.0,0.00028,120]
[338140953,1726297606613,500.0,0.00028,120]
[338140954,1726297615443,573.21,0.00028,120]
[338140955,1726297619624,500.0,0.00028,120]
[338140956,1726297621243,500.0,0.00028,120]
[338140957,1726297622895,500.0,0.00028,120]
[338140958,1726297624993,500.0,0.00028,120]
[338140959,1726297627378,500.0,0.00028,120]
[338140960,1726297627829,415.9,0.00028,120]
[338140961,1726297634152,500.0,0.00028,120]
[338140962,1726297638082,536.04,0.00028,120]
[338140963,1726297640944,500.0,0.00028,120]
[338140964,1726297641737,395.16,0.00028,120]
[338140965,1726297643715,500.0,0.00028,120]
[338140966,1726297646890,500.0,0.00028,120]
[338140967,1726297649041,500.0,0.00028,120]
[338140968,1726297654886,500.0,0.00028,120]
[338140969,1726297662183,500.0,0.00028,120]
[338140970,1726297664962,793.38,0.00028,120]
[338140971,1726297665661,500.0,0.00028,120]
[338140972,1726297672063,500.0,0.00028,120]
[338140973,1726297678511,500.0,0.00028,120]
[338140974,1726297684836,500.0,0.00028,120]
[338140975,1726297685431,500.0,0.00028,120]
[338140976,1726297688893,500.0,0.00028,120]
[338140977,1726297689325,500.0,0.00028,120]
[338140978,1726297693453,500.0,0.00028,120]
[338140979,1726297706148,500.0,0.00028,120]
[338140980,1726297706898,1606.75,0.00028,120]
[338140981,1726297711104,500.0,0.00028,120]
[338140982,1726297713403,500.0,0.00028,120]
[338140983,1726297714281,500.0,0.00028,120]
[338140984,1726297723102,500.0,0.00028,120]
[338140985,1726297729029,500.0,0.00028,120]
[338140986,1726297729166,500.0,0.00028,120]
[338140989,1726297731975,500.0,0.00028,120]
[338140990,1726297733574,500.0,0.00028,120]
[338140991,1726297736075,500.0,0.00028,120]
[338140992,1726297737773,500.0,0.00028,120]
[338140993,1726297737827,500.0,0.00028,120]
[338140994,1726297743441,2428.4,0.00028,120]
[338140995,1726297749575,500.0,0.00028,120]
[338140996,1726297761358,315.27,0.00028,120]
[338140997,1726297761484,500.0,0.00028,120]
[338140998,1726297766429,500.0,0.00028,120]
[338140999,1726297766842,598.3,0.00028,120]
[338141000,1726297770929,341.22,0.00028,120]
[338141002,1726297771418,500.0,0.00028,120]
[338141003,1726297772024,329.08,0.00028,120]
[338141004,1726297775831,500.0,0.00028,120]
[338141005,1726297776775,500.0,0.00028,120]
[338141006,1726297777562,500.0,0.00028,120]
[338141007,1726297780025,500.0,0.00028,120]
[338141008,1726297780502,1711.77,0.00028,120]
[338141009,1726297780979,500.0,0.00028,120]
[338141010,1726297784123,310.63,0.00028,120]
[338141011,1726297784428,500.0,0.00028,120]
[338141012,1726297787015,500.0,0.00028,120]
[338141013,1726297787715,544.9,0.00028,120]
[338141014,1726297790937,500.0,0.00028,120]
[338141015,1726297792304,500.0,0.00028,120]
[338141016,1726297794150,315.74461538,0.00028,120]
[338141017,1726297799543,500.0,0.00028,120]
[338141018,1726297806012,563.58,0.00028,120]
[338141019,1726297811656,500.0,0.00028,120]
[338141020,1726297811767,500.0,0.00028,120]
[338141021,1726297812320,500.0,0.00028,120]
[338141023,1726297820173,500.0,0.00028,120]
[338141024,1726297821457,500.0,0.00028,120]
[338141025,1726297822168,500.0,0.00028,120]
[338141026,1726297826279,180.44,0.00028,120]
[338141044,1726297837542,500.0,0.00028,120]
[338141084,1726297838017,-193.199997,0.00013699,2]
[338141086,1726297838029,-1000.0,0.0002,2]
[338141088,1726297838040,-193.199997,0.00020187,2]
[338141090,1726297838050,-150.112233,0.000206,3]
[338141092,1726297838060,-3000.0,0.00020829,2]
[338141094,1726297838072,-1577.93422868,0.00020885,2]
[338141096,1726297838081,-166.666668,0.00020985,2]
[338141098,1726297838092,-166.666668,0.00021204,2]
[338141100,1726297838102,-166.666668,0.00021423,2]
[338141102,1726297838112,-1577.93422868,0.00021493,2]
[338141104,1726297838123,-166.666668,0.00021642,2]
[338141105,1726297838134,-166.666668,0.0002186,2]
[338141107,1726297838144,-166.666666,0.0002195,2]
[338141109,1726297838153,-166.666668,0.00022079,2]
[338141112,1726297838165,-1577.93422868,0.000221,2]
[338141114,1726297838175,-24900.0,0.00022152,2]
[338141116,1726297838187,-150.112233,0.000222,2]
[338141117,1726297838201,-237.096575,0.00022223,2]
[338141119,1726297838211,-250.0,0.00022266,2]
[338141121,1726297838221,-166.666666,0.00022549,2]
[338141123,1726297838231,-1000.0,0.00023,7]
[338141125,1726297838242,-166.666666,0.00023147,2]
[338141127,1726297838251,-150.112233,0.000237,5]
[338141130,1726297838263,-166.666666,0.00023746,2]
[338141132,1726297838274,-166.666666,0.00024344,2]
[338141134,1726297838284,-1000.0,0.00024507,2]
[338141136,1726297838294,-299.02177394,0.00024573,2]
[338141138,1726297838305,-500.0,0.00024573,2]
[338141140,1726297838316,-500.0,0.00024573,2]
[338141142,1726297838326,-299.82964048,0.00024596,2]
[338141144,1726297838338,-500.0,0.00024596,2]
[338141146,1726297838351,-500.0,0.00024596,2]
[338141148,1726297838361,-329.88975955,0.00024596,2]
[338141150,1726297838373,-500.0,0.00024596,2]
[338141152,1726297838385,-500.0,0.00024596,2]
[338141155,1726297838396,-180.0,0.00024596,2]
[338141157,1726297838407,-179.20119542,0.00024596,2]
[338141159,1726297838419,-532.31974129,0.00024596,2]
[338141161,1726297838429,-578.67862883,0.00024597,3]
[338141480,1726297842983,-384513.67991703,0.00024597,3]
[338141481,1726297842996,-59255.95758917,0.00024597,3]
[338141518,1726297844273,500.0,0.00028,120]
[338141582,1726297850375,500.0,0.00028,120]
[338141583,1726297851463,637.1468156,0.00028,120]
[338141584,1726297854496,500.0,0.00028,120]
[338141585,1726297857502,234.92,0.00028,120]
[338141586,1726297863844,500.0,0.00028,120]
[338141587,1726297866664,500.0,0.00028,120]
[338141588,1726297874704,500.0,0.00028,120]
[338141589,1726297885803,500.0,0.00028,120]
[338141590,1726297886296,500.0,0.00028,120]
[338141591,1726297898760,500.0,0.00028,120]
[338141592,1726297898806,500.0,0.00028,120]
[338141593,1726297906377,760.32,0.00028,120]
[338141595,1726297910089,500.0,0.00028,120]
[338141596,1726297911238,500.0,0.00028,120]
[338141597,1726297927826,500.0,0.00028,120]
[338141598,1726297929479,500.0,0.00028,120]
[338141599,1726297933805,1539.81,0.00028,120]
[338141600,1726297946148,500.0,0.00028,120]
[338141601,1726297950941,355.9,0.00028,120]
[338141602,1726297952521,500.0,0.00028,120]
[338141603,1726297952926,500.0,0.00028,120]
[338141604,1726297953029,500.0,0.00028,120]
[338141605,1726297957177,500.0,0.00028,120]
[338141606,1726297966120,500.0,0.00028,120]
[338141607,1726297968185,500.0,0.00028,120]
[338141608,1726297970137,500.0,0.00028,120]
[338141609,1726297974157,2014.12,0.00028,120]
[338141610,1726297977757,500.0,0.00028,120]
[338141611,1726297977885,277.68832173,0.00028,120]
[338141612,1726297979428,500.0,0.00028,120]
[338141613,1726297981056,500.0,0.00028,120]
[338141614,1726297982838,500.0,0.00028,120]
[338141615,1726297982996,500.0,0.00028,120]
[338141616,1726297984721,500.0,0.00028,120]
[338141617,1726297988549,500.0,0.00028,120]
[338141618,1726297992315,500.0,0.00028,120]
[338141619,1726297995418,500.0,0.00028,120]
[338141620,1726297999970,500.0,0.00028,120]
[338141621,1726298000338,500.0,0.00028,120]
[338141622,1726298003605,500.0,0.00028,120]
[338141623,1726298005118,2327.22,0.00028,120]
[338141624,1726298006980,500.0,0.00028,120]
[338141625,1726298007176,186.77,0.00028,120]
[338141626,1726298016441,500.0,0.00028,120]
[338141627,1726298021243,500.0,0.00028,120]
[338141628,1726298021290,1640.45,0.00028,120]
[338141629,1726298025545,500.0,0.00028,120]
[338141631,1726298027548,500.0,0.00028,120]
[338141632,1726298029003,500.0,0.00028,120]
[338141633,1726298032945,500.0,0.00028,120]
[338141634,1726298035518,500.0,0.00028,120]
[338141635,1726298035801,500.0,0.00028,120]
[338141636,1726298052173,500.0,0.00028,120]
[338141637,1726298053308,500.0,0.00028,120]
[338141638,1726298056961,500.0,0.00028,120]
[338141639,1726298057478,577.05,0.00028,120]
[338141640,1726298059964,500.0,0.00028,120]
[338141641,1726298062641,500.0,0.00028,120]
[338141642,1726298063128,500.0,0.00028,120]
[338141643,1726298070212,500.0,0.00028,120]
[338141644,1726298079257,884.228,0.00026,60]
[338141645,1726298081145,500.0,0.00028,120]
[338141646,1726298081886,500.0,0.00028,120]
[338141647,1726298085715,500.0,0.00028,120]
[338141648,1726298086834,500.0,0.00028,120]
[338141649,1726298089907,500.0,0.00028,120]
[338141650,1726298095588,643.01,0.00028,120]
[338141651,1726298096481,500.0,0.00028,120]
[338141652,1726298098397,602.72253631,0.00028,120]
[338141653,1726298098910,500.0,0.00028,120]
[338141654,1726298104685,600.69400944,0.00028,120]
[338141655,1726298106448,500.0,0.00028,120]
[338141656,1726298113412,261.85,0.00028,120]
[338141657,1726298116983,500.0,0.00028,120]
[338141658,1726298117585,500.0,0.00028,120]
[338141659,1726298117686,500.0,0.00028,120]
[338141660,1726298118543,500.0,0.00028,120]
[338141662,1726298128074,500.0,0.00028,120]
[338141663,1726298131280,500.0,0.00028,120]
[338141664,1726298136607,500.0,0.00028,120]
[338141665,1726298137298,728.64,0.00028,120]
[338141666,1726298145294,500.0,0.00028,120]
[338141667,1726298153575,500.0,0.00028,120]
[338141668,1726298155930,500.0,0.00028,120]
[338141669,1726298159378,500.0,0.00028,120]
[338141670,1726298163171,500.0,0.00028,120]
[338141671,1726298165774,500.0,0.00028,120]
[338141672,1726298171447,500.0,0.00028,120]
[338141673,1726298176843,194.31,0.00028,120]
[338141674,1726298178435,500.0,0.00028,120]
[338141675,1726298178497,500.0,0.00028,120]
[338141676,1726298184835,500.0,0.00028,120]
[338141677,1726298194309,500.0,0.00028,120]
[338141678,1726298195056,500.0,0.00028,120]
[338141679,1726298203987,1475.65,0.00028,120]
[338141680,1726298206697,500.0,0.00028,120]
[338141681,1726298209571,500.0,0.00028,120]
[338141682,1726298213065,500.0,0.00028,120]
[338141683,1726298228176,500.0,0.00028,120]
[338141684,1726298234264,500.0,0.00028,120]
[338141685,1726298242430,500.0,0.00028,120]
[338141686,1726298243143,500.0,0.00028,120]
[338141687,1726298246831,500.0,0.00028,120]
[338141688,1726298248410,516.8,0.00028,120]
[338141689,1726298250811,1572.09,0.00028,120]
[338141690,1726298251829,500.0,0.00028,120]
[338141691,1726298261111,500.0,0.00028,120]
[338141692,1726298264501,500.0,0.00028,120]
[338141693,1726298268622,500.0,0.00028,120]
[338141694,1726298273017,500.0,0.00028,120]
[338141696,1726298276260,500.0,0.00028,120]
[338141697,1726298276659,500.0,0.00028,120]
[338141698,1726298278345,500.0,0.00028,120]
[338141699,1726298283371,500.0,0.00028,120]
[338141700,1726298287585,2230.25,0.00028,120]
[338141701,1726298292348,500.0,0.00028,120]
[338141702,1726298301283,500.0,0.00028,120]
[338141703,1726298311118,500.0,0.00028,120]
[338141704,1726298311754,500.0,0.00028,120]
[338141705,1726298312057,500.0,0.00028,120]
[338141706,1726298316838,208.12,0.00028,120]
[338141707,1726298319005,500.0,0.00028,120]
[338141708,1726298319068,500.0,0.00028,120]
[338141709,1726298328692,500.0,0.00028,120]
[338141710,1726298331153,500.0,0.00028,120]
[338141711,1726298342542,500.0,0.00028,120]
[338141712,1726298343019,500.0,0.00028,120]
[338141713,1726298346817,500.0,0.00028,120]
[338141714,1726298351039,500.0,0.00028,120]
[338141715,1726298358667,500.0,0.00028,120]
[338141716,1726298362638,500.0,0.00028,120]
[338141717,1726298364648,500.0,0.00028,120]
[338141718,1726298368366,500.0,0.00028,120]
[338141719,1726298372018,379.89,0.00028,120]
[338141720,1726298372320,214.16,0.00028,120]
[338141721,1726298377373,500.0,0.00028,120]
[338141722,1726298377802,500.0,0.00028,120]
[338141723,1726298379966,500.0,0.00028,120]
[338141724,1726298391450,500.0,0.00028,120]
[338141725,1726298397457,190.68,0.00028,120]
[338141726,1726298400428,500.0,0.00028,120]
[338141727,1726298418465,500.0,0.00028,120]
[338141728,1726298420688,500.0,0.00028,120]
[338141729,1726298421176,344.39,0.00028,120]
[338141730,1726298423620,153.8,0.00028,120]
[338141731,1726298441310,1414.16,0.00028,120]
[338141732,1726298453729,500.0,0.00028,120]
[338141733,1726298459148,500.0,0.00028,120]
[338141734,1726298459803,500.0,0.00028,120]
[338141735,1726298476528,500.0,0.00028,120]
[338141736,1726298493697,285.851687,0.00028,120]
[338141737,1726298502472,500.0,0.00028,120]
[338141738,1726298503491,500.0,0.00028,120]
[338141739,1726298513118,414.18446014,0.00028,120]
[338141740,1726298521835,2137.32,0.00028,120]
[338141741,1726298524499,590.36,0.00028,120]
[338141742,1726298528178,1506.59,0.00028,120]
[338141743,1726298533144,500.0,0.00028,120]
[338141744,1726298542169,500.0,0.00028,120]
[338141745,1726298544898,500.0,0.00028,120]
[338141746,1726298549607,500.0,0.00028,120]
[338141747,1726298552798,500.0,0.00028,120]
[338141749,1726298557943,500.0,0.00028,120]
[338141750,1726298559910,500.0,0.00028,120]
[338141751,1726298564833,178.75,0.00028,120]
[338141753,1726298574596,500.0,0.00028,120]
[338141754,1726298574811,1930.19,0.00028,120]
[338141755,1726298580887,500.0,0.00028,120]
[338141756,1726298584428,500.0,0.00028,120]
[338141758,1726298602032,500.0,0.00028,120]
[338141759,1726298609319,500.0,0.00028,120]
[338141760,1726298613085,487.41,0.00028,120]
[338141761,1726298615063,500.0,0.00028,120]
[338141762,1726298634308,500.0,0.00028,120]
[338141763,1726298635097,500.0,0.00028,120]
[338141764,1726298637469,500.0,0.00028,120]
[338141765,1726298646452,304.46600378,0.00028,120]
[338141766,1726298650206,500.0,0.00028,120]
[338141767,1726298652450,677.45,0.00028,120]
[338141768,1726298672122,500.0,0.00028,120]
[338141770,1726298683013,1355.24,0.00028,120]
[338141771,1726298686874,500.0,0.00028,120]
[338141772,1726298689761,500.0,0.00028,120]
[338141773,1726298691768,500.0,0.00028,120]
[338141775,1726298696629,500.0,0.00028,120]
[338141776,1726298697918,500.0,0.00028,120]
[338141777,1726298709761,500.0,0.00028,120]
[338141780,1726298728652,500.0,0.00028,120]
[338141783,1726298738922,500.0,0.00028,120]
[338141784,1726298744534,500.0,0.00028,120]
[338141785,1726298746033,500.0,0.00028,120]
[338141786,1726298746451,500.0,0.00028,120]
[338141787,1726298752519,500.0,0.00028,120]
[338141789,1726298758413,500.0,0.00028,120]
[338141790,1726298760296,500.0,0.00028,120]
[338141791,1726298761005,500.0,0.00028,120]
[338141792,1726298761235,500.0,0.00028,120]
[338141793,1726298763482,2048.27,0.00028,120]
[338141794,1726298764554,1443.82,0.00028,120]
[338141795,1726298781670,500.0,0.00028,120]
[338141796,1726298785023,500.0,0.00028,120]
[338141797,1726298795311,500.0,0.00028,120]
[338141798,1726298800899,500.0,0.00028,120]
[338141799,1726298806647,500.0,0.00028,120]
[338141800,1726298813733,258.65,0.00028,120]
[338141801,1726298819508,500.0,0.00028,120]
[338141802,1726298827163,500.0,0.00028,120]
[338141804,1726298848949,500.0,0.00028,120]
[338141805,1726298852753,500.0,0.00028,120]
[338141806,1726298853074,500.0,0.00028,120]
[338141807,1726298857748,500.0,0.00028,120]
[338141808,1726298858755,500.0,0.00028,120]
[338141809,1726298860970,500.0,0.00028,120]
[338141810,1726298868536,500.0,0.00028,120]
[338141811,1726298872504,281.24,0.00028,120]
[338141812,1726298872613,500.0,0.00028,120]
[338141813,1726298874554,500.0,0.00028,120]
[338141815,1726298882643,500.0,0.00028,120]
[338141816,1726298885499,500.0,0.00028,120]
[338141818,1726298896044,649.22,0.00028,120]
[338141819,1726298896089,500.0,0.00028,120]
[338141820,1726298896639,500.0,0.00028,120]
[338141821,1726298901837,500.0,0.00028,120]
[338141822,1726298909137,500.0,0.00028,120]
[338141823,1726298909413,500.0,0.00028,120]
[338141824,1726298914086,500.0,0.00028,120]
[338141825,1726298917208,500.0,0.00028,120]
[338141826,1726298920918,500.0,0.00028,120]
[338141827,1726298922663,500.0,0.00028,120]
[338141828,1726298925608,500.0,0.00028,120]
[338141829,1726298929295,500.0,0.00028,120]
[338141830,1726298929385,1298.77,0.00028,120]
[338141831,1726298929438,515.18,0.00028,120]
[338141832,1726298935599,500.0,0.00028,120]
[338141833,1726298941473,500.0,0.00028,120]
[338141834,1726298941519,500.0,0.00028,120]
[338141835,1726298947341,500.0,0.00028,120]
[338141836,1726298947646,500.0,0.00028,120]
[338141837,1726298950674,500.0,0.00028,120]
[338141838,1726298953281,500.0,0.00028,120]
[338141839,1726298956326,500.31553517,0.00028,120]
[338141840,1726298957439,500.0,0.00028,120]
[338141841,1726298975635,500.0,0.00028,120]
[338141843,1726298983199,453.85015164,0.00028,120]
[338141844,1726298983614,500.0,0.00028,120]
[338141848,1726299004955,500.0,0.00028,120]
[338141849,1726299006009,1383.66,0.00028,120]
[338141850,1726299008329,1962.92,0.00028,120]
[338141851,1726299015286,500.0,0.00028,120]
[338141852,1726299023060,500.0,0.00028,120]
[338141853,1726299024367,500.0,0.00028,120]
[338141854,1726299025970,500.0,0.00028,120]
[338141855,1726299028492,500.0,0.00028,120]
[338141866,1726299032206,-1905.36019977,0.00013599,2]
[338141867,1726299032221,-2959.57867353,0.00013599,2]
[338141868,1726299032241,-299.25945273,0.00013599,2]
[338141894,1726299038199,-701.08611789,0.00013599,2]
[338141896,1726299038209,-173.879997,0.00013699,2]
[338141898,1726299038220,-173.879997,0.00020187,2]
[338141901,1726299038230,-166.666666,0.00022048,2]
[338141903,1726299038242,-237.0965758,0.00022426,2]
[338141905,1726299038252,-666.42575575,0.00022552,2]
[338141907,1726299038264,-2333.57424425,0.00022552,2]
[338141909,1726299038273,-300.0,0.00022621,2]
[338141911,1726299038283,-178.571429,0.00022624,2]
[338141913,1726299038293,-166.666666,0.00022649,2]
[338141915,1726299038302,-178.571429,0.00022821,2]
[338141918,1726299038314,-178.571429,0.00023017,2]
[338141920,1726299038324,-201.516579,0.00023087,2]
[338141922,1726299038334,-178.571429,0.00023214,2]
[338141926,1726299038348,-166.666666,0.0002325,2]
[338141928,1726299038359,-178.571429,0.0002341,2]
[338141930,1726299038371,-178.571429,0.00023607,2]
[338141932,1726299038380,-178.571429,0.00023803,2]
[338141934,1726299038390,-166.666666,0.00023851,2]
[338141936,1726299038399,-4461.74649067,0.00024088,2]
[338141938,1726299038409,-166.666666,0.00024452,2]
[338141940,1726299038418,-1000.0,0.00024536,2]
[338141942,1726299038428,-2000.0,0.000246,30]
[338141944,1726299038438,-176.636903,0.000246,2]
[338141947,1726299038448,-209.88074834,0.00024615,2]
[338141949,1726299038458,-500.0,0.00024615,2]
[338141951,1726299038468,-430.92283169,0.00024615,2]
[338141953,1726299038477,-3873.10872969,0.00024616,11]
[338141955,1726299038490,-34676.42173157,0.00024616,11]
[338142075,1726299042087,525.23746437,0.00028,120]
[338142087,1726299060974,500.0,0.00028,120]
[338142088,1726299077540,500.0,0.00028,120]
[338142089,1726299081304,500.0,0.00028,120]
[338142090,1726299102572,500.0,0.00028,120]
[338142091,1726299104097,500.0,0.00028,120]
[338142092,1726299104649,500.0,0.00028,120]
[338142093,1726299105801,500.0,0.00028,120]
[338142094,1726299106951,500.0,0.00028,120]
[338142095,1726299115863,500.0,0.00028,120]
[338142096,1726299120957,410.99318115,0.00028,120]
[338142097,1726299121727,500.0,0.00028,120]
[338142098,1726299130336,500.0,0.00028,120]
[338142099,1726299131889,500.0,0.00028,120]
[338142100,1726299139740,515.61,0.00028,120]
[338142102,1726299142804,500.0,0.00028,120]
[338142103,1726299143328,622.17,0.00028,120]
[338142104,1726299145016,500.0,0.00028,120]
[338142105,1726299146346,500.0,0.00028,120]
[338142106,1726299153763,500.0,0.00028,120]
[338142107,1726299158131,500.0,0.00028,120]
[338142108,1726299159181,500.0,0.00028,120]
[338142109,1726299161292,500.0,0.00028,120]
[338142111,1726299165322,500.0,0.00028,120]
[338142112,1726299167628,500.0,0.00028,120]
[338142114,1726299171117,1577.8,0.00028,120]
[338142115,1726299173069,257.13453242,0.00028,120]